{"text_format":"3","workbook":"xlsx","n_sheets":1,"sheets":["Πρόταση"],"not_rendered":{"images":1,"defined_names":20},"read":"whole","date_system":"1900"}

{"sheet":"Πρόταση","index":0,"n_rows":39,"n_cols":7,"rows_kept":39,"merged":[[0,1,3,1],[0,3,0,6],[1,4,1,6],[2,4,2,6],[32,3,35,4],[36,3,36,6],[37,3,37,5],[38,3,38,5]]}
[{"$nulls":3},"ΠΡΟΤΑΣΗ ΚΑΤΑΣΚΕΥΗΣ"]
[{"$nulls":3},"Επωνυμία εταιρείας","| Εισαγάγετε τη διεύθυνση της εταιρείας σε αυτό το κελί"]
[{"$nulls":3},"Τηλέφωνο","| Εισαγάγετε τον αριθμό φαξ της εταιρείας και τη διεύθυνση ηλεκτρονικού ταχυδρομείου επικοινωνίας σε αυτό το κελί"]
[{"$nulls":3},"ΠΟΣΟΤΗΤΑ","ΠΕΡΙΓΡΑΦΗ","ΤΙΜΗ ΜΟΝΑΔΑΣ","ΠΟΣΟ"]
[null,"ΠΕΛΑΤΗΣ",null,10,"Είδος 1",{"v":165,"d":"165.00 €"},{"$f":"IFERROR(ΣτοιχείαΓραμμής[[#This Row],[ΠΟΣΟΤΗΤΑ]]*ΣτοιχείαΓραμμής[[#This Row],[ΤΙΜΗ ΜΟΝΑΔΑΣ]], \"\")","v":{"v":1650,"d":"1,650.00 €"}}]
[null,"Εισαγάγετε το όνομα του πελάτη σε αυτό το κελί",null,21,"Στοιχείο 2",{"v":40,"d":"40.00 €"},{"$f":"IFERROR(ΣτοιχείαΓραμμής[[#This Row],[ΠΟΣΟΤΗΤΑ]]*ΣτοιχείαΓραμμής[[#This Row],[ΤΙΜΗ ΜΟΝΑΔΑΣ]], \"\")","v":{"v":840,"d":"840.00 €"}}]
[null,"ΑΡΙΘΜΟΣ ΕΚΤΙΜΗΣΗΣ",null,5,"Στοιχείο 3",{"v":10.5,"d":"10.50 €"},{"$f":"IFERROR(ΣτοιχείαΓραμμής[[#This Row],[ΠΟΣΟΤΗΤΑ]]*ΣτοιχείαΓραμμής[[#This Row],[ΤΙΜΗ ΜΟΝΑΔΑΣ]], \"\")","v":{"v":52.5,"d":"52.50 €"}}]
[null,"C-1234",null,164,"Είδος 4",{"v":2.75,"d":"2.75 €"},{"$f":"IFERROR(ΣτοιχείαΓραμμής[[#This Row],[ΠΟΣΟΤΗΤΑ]]*ΣτοιχείαΓραμμής[[#This Row],[ΤΙΜΗ ΜΟΝΑΔΑΣ]], \"\")","v":{"v":451,"d":"451.00 €"}}]
[null,"ΗΜΕΡΟΜΗΝΙΑ",null,6,"Είδος 5",{"v":12,"d":"12.00 €"},{"$f":"IFERROR(ΣτοιχείαΓραμμής[[#This Row],[ΠΟΣΟΤΗΤΑ]]*ΣτοιχείαΓραμμής[[#This Row],[ΤΙΜΗ ΜΟΝΑΔΑΣ]], \"\")","v":{"v":72,"d":"72.00 €"}}]
[null,{"$f":"TODAY()","v":"2018-11-16"},null,18,"Είδος 6",{"v":5.5,"d":"5.50 €"},{"$f":"IFERROR(ΣτοιχείαΓραμμής[[#This Row],[ΠΟΣΟΤΗΤΑ]]*ΣτοιχείαΓραμμής[[#This Row],[ΤΙΜΗ ΜΟΝΑΔΑΣ]], \"\")","v":{"v":99,"d":"99.00 €"}}]
[null,"ΔΙΕΥΘΥΝΣΗ",null,1,"Στοιχείο 7",{"v":25,"d":"25.00 €"},{"$f":"IFERROR(ΣτοιχείαΓραμμής[[#This Row],[ΠΟΣΟΤΗΤΑ]]*ΣτοιχείαΓραμμής[[#This Row],[ΤΙΜΗ ΜΟΝΑΔΑΣ]], \"\")","v":{"v":25,"d":"25.00 €"}}]
[null,"Εισαγάγετε τη διεύθυνση του πελάτη σε αυτό το κελί",{"$nulls":4},{"$f":"IFERROR(ΣτοιχείαΓραμμής[[#This Row],[ΠΟΣΟΤΗΤΑ]]*ΣτοιχείαΓραμμής[[#This Row],[ΤΙΜΗ ΜΟΝΑΔΑΣ]], \"\")","v":{"v":0,"d":"0.00 €"}}]
[null,"ΠΟΛΗ/ΝΟΜΟΣ/ΤΑΧΥΔΡΟΜΙΚΟΣ ΚΩΔΙΚΑΣ",{"$nulls":4},{"$f":"IFERROR(ΣτοιχείαΓραμμής[[#This Row],[ΠΟΣΟΤΗΤΑ]]*ΣτοιχείαΓραμμής[[#This Row],[ΤΙΜΗ ΜΟΝΑΔΑΣ]], \"\")","v":{"v":0,"d":"0.00 €"}}]
[null,"Εισαγάγετε την πόλη, τον νομό και τον ταχυδρομικό κώδικα του πελάτη σε αυτό το κελί",{"$nulls":4},{"$f":"IFERROR(ΣτοιχείαΓραμμής[[#This Row],[ΠΟΣΟΤΗΤΑ]]*ΣτοιχείαΓραμμής[[#This Row],[ΤΙΜΗ ΜΟΝΑΔΑΣ]], \"\")","v":{"v":0,"d":"0.00 €"}}]
[null,"ΤΗΛΕΦΩΝΟ",{"$nulls":4},{"$f":"IFERROR(ΣτοιχείαΓραμμής[[#This Row],[ΠΟΣΟΤΗΤΑ]]*ΣτοιχείαΓραμμής[[#This Row],[ΤΙΜΗ ΜΟΝΑΔΑΣ]], \"\")","v":{"v":0,"d":"0.00 €"}}]
[null,"Εισαγάγετε τον αριθμό τηλεφώνου του πελάτη σε αυτό το κελί",{"$nulls":4},{"$f":"IFERROR(ΣτοιχείαΓραμμής[[#This Row],[ΠΟΣΟΤΗΤΑ]]*ΣτοιχείαΓραμμής[[#This Row],[ΤΙΜΗ ΜΟΝΑΔΑΣ]], \"\")","v":{"v":0,"d":"0.00 €"}}]
[null,"ΔΙΕΥΘΥΝΣΗ ΗΛΕΚΤΡΟΝΙΚΟΥ ΤΑΧΥΔΡΟΜΕΙΟΥ",{"$nulls":4},{"$f":"IFERROR(ΣτοιχείαΓραμμής[[#This Row],[ΠΟΣΟΤΗΤΑ]]*ΣτοιχείαΓραμμής[[#This Row],[ΤΙΜΗ ΜΟΝΑΔΑΣ]], \"\")","v":{"v":0,"d":"0.00 €"}}]
[null,"Εισαγάγετε τη διεύθυνση ηλεκτρονικού ταχυδρομείου του πελάτη σε αυτό το κελί",{"$nulls":4},{"$f":"IFERROR(ΣτοιχείαΓραμμής[[#This Row],[ΠΟΣΟΤΗΤΑ]]*ΣτοιχείαΓραμμής[[#This Row],[ΤΙΜΗ ΜΟΝΑΔΑΣ]], \"\")","v":{"v":0,"d":"0.00 €"}}]
[null,"ΠΩΛΗΤΗΣ",{"$nulls":4},{"$f":"IFERROR(ΣτοιχείαΓραμμής[[#This Row],[ΠΟΣΟΤΗΤΑ]]*ΣτοιχείαΓραμμής[[#This Row],[ΤΙΜΗ ΜΟΝΑΔΑΣ]], \"\")","v":{"v":0,"d":"0.00 €"}}]
[null,"Εισαγάγετε τον πωλητή σε αυτό το κελί",{"$nulls":4},{"$f":"IFERROR(ΣτοιχείαΓραμμής[[#This Row],[ΠΟΣΟΤΗΤΑ]]*ΣτοιχείαΓραμμής[[#This Row],[ΤΙΜΗ ΜΟΝΑΔΑΣ]], \"\")","v":{"v":0,"d":"0.00 €"}}]
[null,"ΕΡΓΟ",{"$nulls":4},{"$f":"IFERROR(ΣτοιχείαΓραμμής[[#This Row],[ΠΟΣΟΤΗΤΑ]]*ΣτοιχείαΓραμμής[[#This Row],[ΤΙΜΗ ΜΟΝΑΔΑΣ]], \"\")","v":{"v":0,"d":"0.00 €"}}]
[null,"Εισαγάγετε το όνομα του έργου σε αυτό το κελί",{"$nulls":4},{"$f":"IFERROR(ΣτοιχείαΓραμμής[[#This Row],[ΠΟΣΟΤΗΤΑ]]*ΣτοιχείαΓραμμής[[#This Row],[ΤΙΜΗ ΜΟΝΑΔΑΣ]], \"\")","v":{"v":0,"d":"0.00 €"}}]
[null,"ΥΠΟΒΛΗΘΗΚΕ ΑΠΟ:",{"$nulls":4},{"$f":"IFERROR(ΣτοιχείαΓραμμής[[#This Row],[ΠΟΣΟΤΗΤΑ]]*ΣτοιχείαΓραμμής[[#This Row],[ΤΙΜΗ ΜΟΝΑΔΑΣ]], \"\")","v":{"v":0,"d":"0.00 €"}}]
[null,"Εισαγάγετε το όνομα του ατόμου που υπέβαλε την πρόταση σε αυτό το κελί",{"$nulls":4},{"$f":"IFERROR(ΣτοιχείαΓραμμής[[#This Row],[ΠΟΣΟΤΗΤΑ]]*ΣτοιχείαΓραμμής[[#This Row],[ΤΙΜΗ ΜΟΝΑΔΑΣ]], \"\")","v":{"v":0,"d":"0.00 €"}}]
[null,"ΥΠ' ΟΨΙΝ",{"$nulls":4},{"$f":"IFERROR(ΣτοιχείαΓραμμής[[#This Row],[ΠΟΣΟΤΗΤΑ]]*ΣτοιχείαΓραμμής[[#This Row],[ΤΙΜΗ ΜΟΝΑΔΑΣ]], \"\")","v":{"v":0,"d":"0.00 €"}}]
[null,"Εισαγάγετε το όνομα του ατόμου στο οποίο απευθύνεται η πρόταση σε αυτό το κελί",{"$nulls":4},{"$f":"IFERROR(ΣτοιχείαΓραμμής[[#This Row],[ΠΟΣΟΤΗΤΑ]]*ΣτοιχείαΓραμμής[[#This Row],[ΤΙΜΗ ΜΟΝΑΔΑΣ]], \"\")","v":{"v":0,"d":"0.00 €"}}]
[null,"ΟΡΟΙ ΠΛΗΡΩΜΗΣ",{"$nulls":4},{"$f":"IFERROR(ΣτοιχείαΓραμμής[[#This Row],[ΠΟΣΟΤΗΤΑ]]*ΣτοιχείαΓραμμής[[#This Row],[ΤΙΜΗ ΜΟΝΑΔΑΣ]], \"\")","v":{"v":0,"d":"0.00 €"}}]
[null,"Εξόφληση σε 30 ημέρες",{"$nulls":4},{"$f":"IFERROR(ΣτοιχείαΓραμμής[[#This Row],[ΠΟΣΟΤΗΤΑ]]*ΣτοιχείαΓραμμής[[#This Row],[ΤΙΜΗ ΜΟΝΑΔΑΣ]], \"\")","v":{"v":0,"d":"0.00 €"}}]
[null,"ΠΡΟΘΕΣΜΙΑ",{"$nulls":4},{"$f":"IFERROR(ΣτοιχείαΓραμμής[[#This Row],[ΠΟΣΟΤΗΤΑ]]*ΣτοιχείαΓραμμής[[#This Row],[ΤΙΜΗ ΜΟΝΑΔΑΣ]], \"\")","v":{"v":0,"d":"0.00 €"}}]
[null,{"$f":"TODAY()+30","v":"2018-12-16"},{"$nulls":4},{"$f":"IFERROR(ΣτοιχείαΓραμμής[[#This Row],[ΠΟΣΟΤΗΤΑ]]*ΣτοιχείαΓραμμής[[#This Row],[ΤΙΜΗ ΜΟΝΑΔΑΣ]], \"\")","v":{"v":0,"d":"0.00 €"}}]
[{"$nulls":5},"ΜΕΡΙΚΟ ΑΘΡΟΙΣΜΑ",{"$f":"SUBTOTAL(109,ΣτοιχείαΓραμμής[ΠΟΣΟ])","v":{"v":3189.5,"d":"3,189.50 €"}}]
[{"$nulls":3},"ΑΥΤΗ Η ΠΡΟΤΑΣΗ ΠΕΡΙΛΑΜΒΑΝΕΙ ΤΟΥΣ ΟΡΟΥΣ ΠΟΥ ΑΝΑΦΕΡΟΝΤΑΙ ΠΑΡΑΚΑΤΩ:",null,"ΠΟΣΟΣΤΟ ΦΠΑ ",{"v":0.0775,"d":"7.75%"}]
[{"$nulls":3},"Εισαγάγετε τους όρους εδώ",null,"ΦΠΑ ",{"$f":"IFERROR(Μερικό_άθροισμα*ΣυντελεστήςΦΠΑ, \"\")","v":{"v":247.18625,"d":"247.19 €"}}]
[{"$nulls":5},"ΑΛΛΟ "]
[{"$nulls":5},"ΆΘΡΟΙΣΜΑ",{"$f":"IFERROR(Μερικό_άθροισμα+G33+Άλλο, \"\")","v":{"v":3436.68625,"d":"3,436.69 €"}}]
[]
[{"$nulls":3},"Υπογράψτε παρακάτω για να αποδεχθείτε την προσφορά:"]
[]
[{"$nulls":3},"Εξουσιοδοτημένος αντιπρόσωπος",null,null,"Ημερομηνία"]